fUSD/lending_fUSD_20250823
["ID","MTS","AMOUNT","RATE_DAILY","PERIOD"]
[380995311,1755930700772,-976.58,0.00014794,2]
[380995312,1755930700782,-621.35,0.00014794,2]
[380995313,1755930700793,-690.96,0.00014794,2]
[380995314,1755930700803,-464.80345789,0.00014794,2]
[380995315,1755930700813,-602.8,0.00014794,2]
[380995316,1755930700823,-905.63,0.00014794,2]
[380995317,1755930700833,-433.28,0.00014794,2]
[380995318,1755930700843,-893.46,0.00014794,2]
[380995319,1755930700853,-400.0,0.00014794,2]
[380995320,1755930700863,-400.0,0.00014794,2]
[380995321,1755930700873,-664.51,0.00014794,2]
[380995322,1755930700883,-386.03968242,0.00014794,2]
[380995323,1755930700893,-400.0,0.00014794,2]
[380995324,1755930700902,-610.58,0.00014794,2]
[380995325,1755930700912,-400.0,0.00014794,2]
[380995326,1755930700923,-975.83,0.00014794,2]
[380995327,1755930700933,-400.0,0.00014794,2]
[380995328,1755930700943,-520.12,0.00014794,2]
[380995329,1755930700953,-567.16,0.00014794,2]
[380995330,1755930700963,-437.71,0.00014794,2]
[380995331,1755930700972,-591.76,0.00014794,2]
[380995332,1755930700982,-629.55,0.00014794,2]
[380995333,1755930700992,-400.0,0.00014794,2]
[380995334,1755930701002,-707.96,0.00014794,2]
[380995335,1755930701012,-976.57,0.00014794,2]
[380995336,1755930701022,-548.63,0.00014794,2]
[380995337,1755930701032,-400.0,0.00014794,2]
[380995338,1755930701042,-696.63,0.00014794,2]
[380995339,1755930701057,-548.08,0.00014794,2]
[380995340,1755930701068,-421.64,0.00014794,2]
[380995341,1755930701078,-1327.74,0.00014794,2]
[380995342,1755930701088,-400.0,0.00014794,2]
[380995343,1755930701098,-408.25,0.00014794,2]
[380995344,1755930701107,-666.95,0.00014794,2]
[380995345,1755930701117,-400.0,0.00014794,2]
[380995346,1755930701127,-400.0,0.00014794,2]
[380995347,1755930701136,-400.0,0.00014794,2]
[380995348,1755930701146,-478.81,0.00014794,2]
[380995349,1755930701156,-400.0,0.00014794,2]
[380995350,1755930701166,-400.0,0.00014794,2]
[380995351,1755930701175,-475.87,0.00014794,2]
[380995352,1755930701186,-752.44,0.00014794,2]
[380995353,1755930701196,-553.32,0.00014794,2]
[380995354,1755930701206,-414.48,0.00014794,2]
[380995355,1755930701216,-598.85,0.00014794,2]
[380995356,1755930701226,-400.0,0.00014794,2]
[380995357,1755930701236,-418.3,0.00014794,2]
[380995358,1755930701246,-400.0,0.00014794,2]
[380995359,1755930701256,-590.73,0.00014794,2]
[380995360,1755930701266,-558.79,0.00014794,2]
[380995361,1755930701276,-977.36,0.00014794,2]
[380995362,1755930701289,-400.0,0.00014794,2]
[380995363,1755930701298,-400.0,0.00014794,2]
[380995364,1755930701308,-400.0,0.00014794,2]
[380995365,1755930701319,-400.0,0.00014794,2]
[380995366,1755930701329,-400.0,0.00014794,2]
[380995367,1755930701339,-400.0,0.00014794,2]
[380995368,1755930701349,-400.0,0.00014794,2]
[380995369,1755930701360,-1058.0,0.00014794,2]
[380995370,1755930701370,-595.73,0.00014794,2]
[380995371,1755930701380,-792.12,0.00014794,2]
[380995372,1755930701391,-490.78,0.00014794,2]
[380995373,1755930701400,-400.0,0.00014794,2]
[380995374,1755930701413,-400.0,0.00014794,2]
[380995375,1755930701424,-400.0,0.00014794,2]
[380995376,1755930701434,-440.17134792,0.00014794,2]
[380995377,1755930701444,-664.29,0.00014794,2]
[380995378,1755930701454,-400.0,0.00014794,2]
[380995379,1755930701464,-400.0,0.00014794,2]
[380995380,1755930701474,-603.04,0.00014794,2]
[380995381,1755930701484,-894.08,0.00014794,2]
[380995382,1755930701494,-400.0,0.00014794,2]
[380995383,1755930701504,-419.15,0.00014794,2]
[380995384,1755930701514,-392.16,0.00014794,2]
[380995385,1755930701524,-400.0,0.00014794,2]
[380995386,1755930701534,-538.29,0.00014794,2]
[380995387,1755930701544,-400.0,0.00014794,2]
[380995388,1755930701555,-400.0,0.00014794,2]
[380995389,1755930701566,-855.49,0.00014794,2]
[380995390,1755930701576,-400.0,0.00014794,2]
[380995391,1755930701585,-423.93,0.00014794,2]
[380995392,1755930701595,-400.0,0.00014794,2]
[380995393,1755930701605,-633.58,0.00014794,2]
[380995394,1755930701615,-509.54,0.00014794,2]
[380995395,1755930701625,-401.83283335,0.00014794,2]
[380995396,1755930701635,-400.0,0.00014794,2]
[380995397,1755930701645,-3166.9,0.00014794,2]
[380995398,1755930701654,-400.0,0.00014794,2]
[380995399,1755930701664,-400.0,0.00014794,2]
[380995400,1755930701675,-532.83,0.00014794,2]
[380995401,1755930701684,-400.0,0.00014794,2]
[380995402,1755930701696,-462.81,0.00014794,2]
[380995403,1755930701716,-487.36,0.00014794,2]
[380995404,1755930701727,-571.73,0.00014794,2]
[380995405,1755930701736,-712.9,0.00014794,2]
[380995406,1755930701746,-761.19,0.00014794,2]
[380995407,1755930701756,-781.23,0.00014794,2]
[380995408,1755930701766,-990.26,0.00014794,2]
[380995409,1755930701776,-400.0,0.00014794,2]
[380995410,1755930701785,-400.0,0.00014794,2]
[380995411,1755930701795,-400.0,0.00014794,2]
[380995412,1755930701805,-713.0,0.00014794,2]
[380995413,1755930701815,-594.22,0.00014794,2]
[380995414,1755930701824,-400.0,0.00014794,2]
[380995415,1755930701834,-736.28,0.00014794,2]
[380995416,1755930701844,-400.0,0.00014794,2]
[380995417,1755930701854,-715.03,0.00014794,2]
[380995418,1755930701864,-441.42,0.00014794,2]
[380995419,1755930701874,-400.0,0.00014794,2]
[380995420,1755930701884,-931.43,0.00014794,2]
[380995421,1755930701894,-602.5,0.00014794,2]
[380995422,1755930701904,-649.04,0.00014794,2]
[380995423,1755930701913,-553.23,0.00014794,2]
[380995424,1755930701925,-400.0,0.00014794,2]
[380995425,1755930701935,-400.0,0.00014794,2]
[380995426,1755930701945,-720.71,0.00014794,2]
[380995427,1755930701954,-942.63,0.00014794,2]
[380995428,1755930701964,-419.63,0.00014794,2]
[380995429,1755930701974,-624.59,0.00014794,2]
[380995430,1755930701984,-797.24,0.00014794,2]
[380995431,1755930701994,-401.22042282,0.00014794,2]
[380995432,1755930702004,-400.0,0.00014794,2]
[380995433,1755930702014,-400.0,0.00014794,2]
[380995434,1755930702025,-587.49,0.00014794,2]
[380995435,1755930702036,-400.0,0.00014794,2]
[380995436,1755930702046,-400.0,0.00014794,2]
[380995437,1755930702056,-2151.45,0.00014794,2]
[380995438,1755930702067,-400.0,0.00014794,2]
[380995439,1755930702078,-690.44,0.00014794,2]
[380995440,1755930702089,-692.13,0.00014794,2]
[380995441,1755930702099,-697.05,0.00014794,2]
[380995442,1755930702110,-731.85,0.00014794,2]
[380995443,1755930702121,-400.0,0.00014794,2]
[380995444,1755930702131,-874.21,0.00014794,2]
[380995445,1755930702140,-542.89,0.00014794,2]
[380995446,1755930702150,-513.06,0.00014794,2]
[380995447,1755930702159,-460.59,0.00014794,2]
[380995448,1755930702169,-764.63,0.00014794,2]
[380995449,1755930702179,-400.0,0.00014794,2]
[380995450,1755930702190,-416.02,0.00014794,2]
[380995451,1755930702200,-512.62,0.00014794,2]
[380995452,1755930702211,-400.0,0.00014794,2]
[380995453,1755930702221,-436.53,0.00014794,2]
[380995454,1755930702231,-400.0,0.00014794,2]
[380995455,1755930702241,-692.03,0.00014794,2]
[380995456,1755930702443,-418.83,0.00014794,2]
[380995457,1755930702454,-400.0,0.00014794,2]
[380995458,1755930702464,-1343.83,0.00014794,2]
[380995459,1755930702474,-400.0,0.00014794,2]
[380995460,1755930702484,-617.12,0.00014794,2]
[380995461,1755930702500,-400.0,0.00014794,2]
[380995462,1755930702512,-400.0,0.00014794,2]
[380995463,1755930702522,-764.95,0.00014794,2]
[380995464,1755930702532,-400.0,0.00014794,2]
[380995465,1755930702541,-704.81,0.00014794,2]
[380995466,1755930702550,-400.0,0.00014794,2]
[380995467,1755930702560,-657.79,0.00014794,2]
[380995468,1755930702570,-1027.02,0.00014794,2]
[380995469,1755930702580,-677.4,0.00014794,2]
[380995470,1755930702590,-400.0,0.00014794,2]
[380995471,1755930702600,-400.0,0.00014794,2]
[380995472,1755930702611,-400.0,0.00014794,2]
[380995473,1755930702621,-400.0,0.00014794,2]
[380995474,1755930702631,-400.0,0.00014794,2]
[380995475,1755930702640,-400.0,0.00014794,2]
[380995476,1755930702650,-817.2,0.00014794,2]
[380995477,1755930702659,-400.0,0.00014794,2]
[380995478,1755930702676,-1019.45,0.00014794,2]
[380995479,1755930702685,-500.32,0.00014794,2]
[380995480,1755930702695,-400.0,0.00014794,2]
[380995481,1755930702704,-400.0,0.00014794,2]
[380995482,1755930702713,-554.8,0.00014794,2]
[380995483,1755930702723,-632.54,0.00014794,2]
[380995484,1755930702732,-624.73,0.00014794,2]
[380995485,1755930702742,-739.16,0.00014794,2]
[380995486,1755930702751,-583.62,0.00014794,2]
[380995487,1755930702761,-853.25,0.00014794,2]
[380995488,1755930702771,-400.0,0.00014794,2]
[380995489,1755930702780,-12873.11,0.00014794,2]
[380995490,1755930702790,-990.21,0.00014794,2]
[380995491,1755930702800,-400.0,0.00014794,2]
[380995492,1755930702809,-400.0,0.00014794,2]
[380995493,1755930702824,-400.0,0.00014794,2]
[380995494,1755930702834,-588.98,0.00014794,2]
[380995495,1755930702844,-897.81,0.00014794,2]
[380995496,1755930702854,-799.46,0.00014794,2]
[380995497,1755930702863,-646.95,0.00014794,2]
[380995498,1755930702873,-418.63,0.00014794,2]
[380995499,1755930702884,-987.03,0.00014794,2]
[380995500,1755930702894,-435.65,0.00014794,2]
[380995501,1755930702904,-453.72,0.00014794,2]
[380995502,1755930702914,-558.93,0.00014794,2]
[380995503,1755930702925,-421.41,0.00014794,2]
[380995504,1755930702935,-400.0,0.00014794,2]
[380995505,1755930702944,-801.09,0.00014794,2]
[380995506,1755930702954,-400.0,0.00014794,2]
[380995507,1755930702964,-940.82,0.00014794,2]
[380995508,1755930702974,-738.24,0.00014794,2]
[380995509,1755930702984,-1045.55,0.00014794,2]
[380995510,1755930702994,-400.0,0.00014794,2]
[380995511,1755930703004,-400.0,0.00014794,2]
[380995512,1755930703015,-1129.74,0.00014794,2]
[380995513,1755930703024,-941.53,0.00014794,2]
[380995514,1755930703034,-400.0,0.00014794,2]
[380995515,1755930703044,-1172.0,0.00014794,2]
[380995516,1755930703054,-1384.75,0.00014794,2]
[380995517,1755930703065,-524.08969009,0.00014794,2]
[380995518,1755930703075,-740.0,0.00014794,2]
[380995519,1755930703085,-419.05,0.00014794,2]
[380995520,1755930703095,-831.91,0.00014794,2]
[380995521,1755930703104,-400.0,0.00014794,2]
[380995522,1755930703115,-778.45,0.00014794,2]
[380995523,1755930703124,-400.0,0.00014794,2]
[380995524,1755930703134,-1047.67,0.00014794,2]
[380995525,1755930703144,-400.0,0.00014794,2]
[380995526,1755930703153,-407.06,0.00014794,2]
[380995527,1755930703163,-400.0,0.00014794,2]
[380995528,1755930703174,-640.87,0.00014794,2]
[380995529,1755930703183,-400.0,0.00014794,2]
[380995530,1755930703193,-406.8,0.00014794,2]
[380995531,1755930703203,-400.0,0.00014794,2]
[380995532,1755930703212,-620.0,0.00014794,2]
[380995533,1755930703228,-566.33,0.00014794,2]
[380995534,1755930703239,-401.50618712,0.00014794,2]
[380995535,1755930703249,-428.51,0.00014794,2]
[380995536,1755930703259,-400.0,0.00014794,2]
[380995537,1755930703269,-1110.17,0.00014794,2]
[380995538,1755930703279,-643.19,0.00014794,2]
[380995539,1755930703293,-1114.49,0.00014794,2]
[380995540,1755930703303,-400.0,0.00014794,2]
[380995541,1755930703313,-716.98,0.00014794,2]
[380995542,1755930703324,-1209.16,0.00014794,2]
[380995543,1755930703333,-458.89,0.00014794,2]
[380995544,1755930703343,-400.0,0.00014794,2]
[380995545,1755930703353,-400.0,0.00014794,2]
[380995546,1755930703366,-626.95,0.00014794,2]
[380995547,1755930703376,-932.5,0.00014794,2]
[380995548,1755930703387,-893.99,0.00014794,2]
[380995549,1755930703397,-400.0,0.00014794,2]
[380995550,1755930703407,-640.9,0.00014794,2]
[380995551,1755930703417,-400.0,0.00014794,2]
[380995552,1755930703427,-1077.14,0.00014794,2]
[380995553,1755930703436,-400.0,0.00014794,2]
[380995554,1755930703446,-1129.31,0.00014794,2]
[380995555,1755930703456,-897.5,0.00014794,2]
[380995556,1755930703466,-928.82,0.00014794,2]
[380995557,1755930703476,-985.74,0.00014794,2]
[380995558,1755930703485,-584.91,0.00014794,2]
[380995559,1755930703495,-1594.64,0.00014794,2]
[380995560,1755930703505,-672.3,0.00014794,2]
[380995561,1755930703515,-400.0,0.00014794,2]
[380995562,1755930703525,-681.69,0.00014794,2]
[380995563,1755930703535,-486.38,0.00014794,2]
[380995564,1755930703545,-482.01,0.00014794,2]
[380995565,1755930703554,-801.05,0.00014794,2]
[380995566,1755930703564,-705.27,0.00014794,2]
[380995567,1755930703574,-649.64,0.00014794,2]
[380995568,1755930703584,-611.51,0.00014794,2]
[380995569,1755930703593,-504.22,0.00014794,2]
[380995570,1755930703603,-475.16,0.00014794,2]
[380995571,1755930703612,-400.0,0.00014794,2]
[380995572,1755930703622,-810.53,0.00014794,2]
[380995573,1755930703635,-753.61,0.00014794,2]
[380995574,1755930703646,-400.0,0.00014794,2]
[380995575,1755930703656,-400.0,0.00014794,2]
[380995576,1755930703665,-667.17,0.00014794,2]
[380995577,1755930703676,-2291.05,0.00014794,2]
[380995578,1755930703686,-446.02,0.00014794,2]
[380995579,1755930703696,-508.92,0.00014794,2]
[380995580,1755930703707,-1407.45,0.00014794,2]
[380995581,1755930703717,-400.0,0.00014794,2]
[380995582,1755930703728,-616.47,0.00014794,2]
[380995583,1755930703738,-696.36,0.00014794,2]
[380995584,1755930703748,-400.0,0.00014794,2]
[380995585,1755930703759,-881.54,0.00014794,2]
[380995586,1755930703769,-855.52,0.00014794,2]
[380995587,1755930703779,-400.0,0.00014794,2]
[380995588,1755930703788,-1014.43,0.00014794,2]
[380995589,1755930703798,-400.0,0.00014794,2]
[380995590,1755930703808,-400.0,0.00014794,2]
[380995591,1755930703818,-1284.58,0.00014794,2]
[380995592,1755930703828,-866.11,0.00014794,2]
[380995593,1755930703838,-440.11,0.00014794,2]
[380995594,1755930703847,-729.3,0.00014794,2]
[380995595,1755930703875,-400.0,0.00014794,2]
[380995596,1755930703893,-400.0,0.00014794,2]
[380995597,1755930703912,-477.59,0.00014794,2]
[380995598,1755930703931,-285.264334,0.00014794,2]
[380995599,1755930703948,-520.35,0.00014794,2]
[380995600,1755930703967,-1238.33,0.00014794,2]
[380995601,1755930703986,-656.46,0.00014794,2]
[380995602,1755930704006,-772.76,0.00014794,2]
[380995603,1755930704024,-400.0,0.00014794,2]
[380995604,1755930704050,-400.0,0.00014794,2]
[380995605,1755930704070,-400.0,0.00014794,2]
[380995606,1755930704085,-400.0,0.00014794,2]
[380995607,1755930704103,-892.57,0.00014794,2]
[380995608,1755930704124,-400.0,0.00014794,2]
[380995609,1755930704140,-400.0,0.00014794,2]
[380995610,1755930704164,-600.2,0.00014794,2]
[380995611,1755930704185,-400.0,0.00014794,2]
[380995612,1755930704206,-602.88,0.00014794,2]
[380995613,1755930704229,-590.02,0.00014794,2]
[380995614,1755930704251,-1076.13,0.00014794,2]
[380995615,1755930704270,-400.0,0.00014794,2]
[380995616,1755930704292,-736.8,0.00014794,2]
[380995617,1755930704311,-400.0,0.00014794,2]
[380995618,1755930704331,-1141.99,0.00014794,2]
[380995619,1755930704349,-400.0,0.00014794,2]
[380995620,1755930704369,-451.08,0.00014794,2]
[380995621,1755930704388,-562.1,0.00014794,2]
[380995622,1755930704406,-400.0,0.00014794,2]
[380995623,1755930704423,-573.5,0.00014794,2]
[380995624,1755930704440,-821.55,0.00014794,2]
[380995625,1755930704458,-1096.32,0.00014794,2]
[380995626,1755930704492,-463.18,0.00014794,2]
[380995627,1755930704515,-624.58,0.00014794,2]
[380995628,1755930704536,-400.0,0.00014794,2]
[380995629,1755930704556,-1352.51,0.00014794,2]
[380995630,1755930704577,-1117.58,0.00014794,2]
[380995631,1755930704596,-1337.58,0.00014794,2]
[380995632,1755930704614,-1340.25,0.00014794,2]
[380995633,1755930704634,-930.86,0.00014794,2]
[380995634,1755930704653,-491.34,0.00014794,2]
[380995635,1755930704671,-400.0,0.00014794,2]
[380995636,1755930704689,-546.89,0.00014794,2]
[380995637,1755930704706,-871.98,0.00014794,2]
[380995638,1755930704724,-734.61,0.00014794,2]
[380995639,1755930704743,-1287.92,0.00014794,2]
[380995640,1755930704761,-944.89,0.00014794,2]
[380995641,1755930704778,-1082.98,0.00014794,2]
[380995642,1755930704799,-400.0,0.00014794,2]
[380995643,1755930704818,-400.0,0.00014794,2]
[380995644,1755930704846,-493.59,0.00014794,2]
[380995645,1755930704867,-802.48,0.00014794,2]
[380995646,1755930704889,-411.6,0.00014794,2]
[380995647,1755930704912,-794.21,0.00014794,2]
[380995648,1755930704931,-445.1,0.00014794,2]
[380995649,1755930704951,-548.11,0.00014794,2]
[380995650,1755930704969,-581.6,0.00014794,2]
[380995651,1755930704988,-1006.63,0.00014794,2]
[380995652,1755930705005,-1523.05,0.00014794,2]
[380995653,1755930705026,-400.0,0.00014794,2]
[380995654,1755930705049,-454.19,0.00014794,2]
[380995655,1755930705071,-567.41,0.00014794,2]
[380995656,1755930705091,-540.12,0.00014794,2]
[380995657,1755930705110,-541.18,0.00014794,2]
[380995658,1755930705128,-1038.57,0.00014794,2]
[380995659,1755930705147,-760.57,0.00014794,2]
[380995660,1755930705165,-1120.03,0.00014794,2]
[380995661,1755930705186,-400.0,0.00014794,2]
[380995662,1755930705204,-1113.52,0.00014794,2]
[380995663,1755930705227,-584.57,0.00014794,2]
[380995664,1755930705246,-400.0,0.00014794,2]
[380995665,1755930705266,-400.0,0.00014794,2]
[380995666,1755930705289,-684.51,0.00014794,2]
[380995667,1755930705307,-904.27,0.00014794,2]
[380995668,1755930705325,-660.57,0.00014794,2]
[380995669,1755930705341,-871.26,0.00014794,2]
[380995670,1755930705360,-1031.27,0.00014794,2]
[380995671,1755930705377,-923.07,0.00014794,2]
[380995672,1755930705395,-986.27,0.00014794,2]
[380995673,1755930705419,-1872.47,0.00014794,2]
[380995674,1755930705439,-994.88,0.00014794,2]
[380995675,1755930705455,-768.72,0.00014794,2]
[380995676,1755930705472,-400.0,0.00014794,2]
[380995677,1755930705488,-1031.23,0.00014794,2]
[380995678,1755930705504,-571.58,0.00014794,2]
[380995679,1755930705520,-1016.95,0.00014794,2]
[380995680,1755930705536,-400.0,0.00014794,2]
[380995681,1755930705553,-647.53,0.00014794,2]
[380995682,1755930705569,-775.88,0.00014794,2]
[380995683,1755930705586,-400.0,0.00014794,2]
[380995684,1755930705603,-347.32799156,0.00014794,2]
[380995685,1755930705619,-605.11,0.00014794,2]
[380995686,1755930705637,-908.13,0.00014794,2]
[380995687,1755930705653,-405.51,0.00014794,2]
[380995688,1755930705669,-639.89,0.00014794,2]
[380995689,1755930705685,-402.71,0.00014794,2]
[380995690,1755930705702,-999.76,0.00014794,2]
[380995691,1755930705718,-400.0,0.00014794,2]
[380995692,1755930705734,-968.0,0.00014794,2]
[380995693,1755930705750,-834.9,0.00014794,2]
[380995694,1755930705767,-1449.64,0.00014794,2]
[380995695,1755930705783,-838.11,0.00014794,2]
[380995696,1755930705798,-400.0,0.00014794,2]
[380995697,1755930705816,-873.94,0.00014794,2]
[380995698,1755930705831,-764.67,0.00014794,2]
[380995699,1755930705847,-400.0,0.00014794,2]
[380995700,1755930705863,-839.44,0.00014794,2]
[380995701,1755930705880,-402.87,0.00014794,2]
[380995702,1755930705896,-747.31,0.00014794,2]
[380995703,1755930705912,-400.0,0.00014794,2]
[380995704,1755930705928,-400.0,0.00014794,2]
[380995705,1755930705943,-393.00803612,0.00014794,2]
[380995706,1755930705959,-496.75,0.00014794,2]
[380995707,1755930705975,-514.65,0.00014794,2]
[380995708,1755930705991,-2296.87,0.00014794,2]
[380995709,1755930706006,-400.0,0.00014794,2]
[380995710,1755930706022,-400.0,0.00014794,2]
[380995711,1755930706038,-1231.43,0.00014794,2]
[380995712,1755930706065,-400.0,0.00014794,2]
[380995713,1755930706088,-1067.81,0.00014794,2]
[380995714,1755930706110,-400.0,0.00014794,2]
[380995715,1755930706130,-1143.89,0.00014794,2]
[380995716,1755930706150,-400.0,0.00014794,2]
[380995717,1755930706168,-1043.98,0.00014794,2]
[380995718,1755930706190,-621.01,0.00014794,2]
[380995719,1755930706208,-1047.41,0.00014794,2]
[380995720,1755930706226,-688.55,0.00014794,2]
[380995721,1755930706244,-2024.11,0.00014794,2]
[380995722,1755930706262,-400.0,0.00014794,2]
[380995723,1755930706278,-400.0,0.00014794,2]
[380995724,1755930706299,-471.83,0.00014794,2]
[380995725,1755930706317,-1569.0,0.00014794,2]
[380995726,1755930706334,-702.78,0.00014794,2]
[380995727,1755930706351,-1557.8,0.00014794,2]
[380995728,1755930706369,-400.0,0.00014794,2]
[380995729,1755930706387,-562.49,0.00014794,2]
[380995730,1755930706404,-400.0,0.00014794,2]
[380995731,1755930706421,-1015.96,0.00014794,2]
[380995732,1755930706438,-415.83,0.00014794,2]
[380995733,1755930706455,-1619.12,0.00014794,2]
[380995734,1755930706872,-704.74,0.00014794,2]
[380995735,1755930706882,-873.77,0.00014794,2]
[380995736,1755930706892,-603.17,0.00014794,2]
[380995737,1755930706901,-1020.89,0.00014794,2]
[380995738,1755930706915,-718.17,0.00014794,2]
[380995739,1755930706924,-1397.26,0.00014794,2]
[380995740,1755930706935,-779.46,0.00014794,2]
[380995741,1755930706945,-659.51,0.00014794,2]
[380995742,1755930706955,-796.66,0.00014794,2]
[380995743,1755930706966,-873.13,0.00014794,2]
[380995744,1755930706975,-1242.26,0.00014794,2]
[380995745,1755930706985,-400.0,0.00014794,2]
[380995746,1755930706994,-535.86,0.00014794,2]
[380995747,1755930707004,-400.0,0.00014794,2]
[380995748,1755930707014,-607.83,0.00014794,2]
[380995749,1755930707023,-400.0,0.00014794,2]
[380995750,1755930707032,-400.0,0.00014794,2]
[380995751,1755930707042,-181.68260706,0.00014794,2]
[380995752,1755930707052,-400.0,0.00014794,2]
[380995753,1755930707062,-734.36,0.00014794,2]
[380995754,1755930707072,-643.58,0.00014794,2]
[380995755,1755930707082,-593.25,0.00014794,2]
[380995756,1755930707092,-1009.14,0.00014794,2]
[380995757,1755930707102,-590.01,0.00014794,2]
[380995758,1755930707111,-566.68,0.00014794,2]
[380995759,1755930707121,-686.64,0.00014794,2]
[380995760,1755930707131,-821.45,0.00014794,2]
[380995761,1755930707144,-1020.13,0.00014794,2]
[380995762,1755930707154,-739.95,0.00014794,2]
[380995763,1755930707163,-752.12,0.00014794,2]
[380995764,1755930707173,-567.76,0.00014794,2]
[380995765,1755930707182,-1008.59,0.00014794,2]
[380995766,1755930707192,-749.2,0.00014794,2]
[380995767,1755930707202,-782.78,0.00014794,2]
[380995768,1755930707211,-761.24,0.00014794,2]
[380995769,1755930707221,-676.25,0.00014794,2]
[380995770,1755930707230,-1360.81,0.00014794,2]
[380995771,1755930707240,-696.26,0.00014794,2]
[380995772,1755930707249,-512.32,0.00014794,2]
[380995773,1755930707259,-400.0,0.00014794,2]
[380995774,1755930707268,-1871.16,0.00014794,2]
[380995775,1755930707278,-408.99,0.00014794,2]
[380995776,1755930707292,-638.4,0.00014794,2]
[380995777,1755930707301,-491.72,0.00014794,2]
[380995778,1755930707311,-421.0788798,0.00014794,2]
[380995779,1755930707322,-633.69,0.00014794,2]
[380995780,1755930707333,-1307.02,0.00014794,2]
[380995781,1755930707343,-515.86,0.00014794,2]
[380995782,1755930707353,-459.89,0.00014794,2]
[380995783,1755930707364,-807.4,0.00014794,2]
[380995784,1755930707374,-553.1,0.00014794,2]
[380995785,1755930707391,-718.67,0.00014794,2]
[380995786,1755930707402,-620.72,0.00014794,2]
[380995787,1755930707411,-928.31,0.00014794,2]
[380995788,1755930707421,-2900.39,0.00014794,2]
[380995789,1755930707431,-400.0,0.00014794,2]
[380995790,1755930707442,-405.54,0.00014794,2]
[380995791,1755930707453,-591.71,0.00014794,2]
[380995792,1755930707463,-1259.98,0.00014794,2]
[380995793,1755930707472,-400.0,0.00014794,2]
[380995794,1755930707482,-494.42,0.00014794,2]
[380995795,1755930707491,-992.94,0.00014794,2]
[380995796,1755930707501,-400.0,0.00014794,2]
[380995797,1755930707510,-734.9,0.00014794,2]
[380995798,1755930707520,-400.0,0.00014794,2]
[380995799,1755930707530,-810.57,0.00014794,2]
[380995800,1755930707540,-709.79,0.00014794,2]
[380995801,1755930707550,-931.49,0.00014794,2]
[380995802,1755930707561,-827.71,0.00014794,2]
[380995803,1755930707571,-567.95,0.00014794,2]
[380995804,1755930707580,-624.47,0.00014794,2]
[380995805,1755930707590,-3127.36,0.00014794,2]
[380995806,1755930707599,-400.0,0.00014794,2]
[380995807,1755930707608,-732.26,0.00014794,2]
[380995808,1755930707618,-400.0,0.00014794,2]
[380995809,1755930707627,-400.0,0.00014794,2]
[380995810,1755930707637,-427.22,0.00014794,2]